{"text_format":"1","workbook":"xlsx","n_sheets":9,"sheets":["SolCotizacion","ResumenCotizacion","Cotizacion","Cotizacion (3)","Cotizacion (2)","Version 1 24-11-2017","CSV","Categoría 1","Listado"],"not_rendered":{"charts":0,"images":0,"macros":1,"external_links":6,"defined_names":572,"comments":0,"pivot_tables":0},"unopened":[],"bounds":{"document_bytes":16777216,"sheet_cells":100000,"rows_first":2000,"rows_last":500,"rows_between":2000,"halvings":0,"cell_chars":16384,"cell_head_chars":4096},"cells_cut":0,"cells_raw":0,"read":"whole","date_system":"1900"}

{"sheet":"SolCotizacion","index":0,"n_rows":27,"n_cols":14,"rows_kept":27,"cut":false,"hidden":false,"merged":[[11,7,11,8],[19,1,19,7],[20,1,20,7],[13,0,13,12],[15,10,15,11],[19,10,19,12],[20,10,20,12],[26,0,26,5],[0,0,1,12],[3,0,3,12],[5,0,5,1],[5,10,5,12],[9,0,9,1],[7,0,7,1],[5,2,5,8],[7,2,7,8],[9,2,9,8],[9,10,9,11],[7,10,7,12],[11,9,11,10],[11,11,11,12],[11,0,11,1],[11,2,11,3]]}
["Solicitud de cotización - IAD Video-vigilancia ciudadana"]
[]
["Versión: 2","2018-01-15"]
["Información de la Entidad Compradora"]
[]
["Nombre de la Entidad:",null,null,null,null,null,null,null,null,"NIT:"]
[]
["Dirección de la Entidad:",null,null,null,null,null,null,null,null,"Correo de contacto:"]
[]
["Municipio:",null,null,null,null,null,null,null,null,"Teléfono de contacto:"]
[]
["Fecha Creación del evento:",null,null,null,"Fecha Estimada de Expedición de la Orden de Compra",null,"Fecha Estimada de finalización de orden de compra",null,null,"Nombre funcionario Comprador:"]
[]
["Solicitud de Cotización"]
[]
[null,"Filas a agregar o eliminar:"]
[null,null,null,null,null,null,"Valor presupuesto"]
[null,1]
[]
["Item","Nombre Producto",null,null,null,null,null,null,null,"Cantidad Estimada","Unidad de medida",null,null,"Número de parte"]
[1,null,null,null,null,null,null,null,null,null,null,null,null,"N/A"]
[]
[]
[]
[]
[]
["Fin de solicitud"]

{"sheet":"ResumenCotizacion","index":1,"n_rows":26,"n_cols":18,"rows_kept":26,"cut":false,"hidden":false,"merged":[[9,10,9,11],[11,0,11,1],[11,2,11,8],[11,9,11,10],[11,11,11,12],[9,0,9,1],[9,2,9,8],[24,10,24,12],[24,0,24,5],[25,11,27,11],[25,12,27,12],[0,0,1,12],[3,0,3,12],[5,0,5,1],[5,2,5,8],[5,10,5,12],[13,0,13,12],[15,10,15,11],[21,1,21,7],[22,1,22,7],[7,10,7,12],[7,0,7,1],[7,2,7,8]]}
["Resumen de Cotización - IAD Video-vigilancia ciudadana",null,null,null,null,null,null,null,null,null,null,null,null,null,null,null,0.01,0]
[]
[]
["Información de la Entidad Compradora"]
[]
["Nombre de la Entidad:",null,{"$f":"IF(SolCotizacion!C6=\"\",\"\",SolCotizacion!C6)","v":""},null,null,null,null,null,null,"NIT:",{"$f":"IF(SolCotizacion!K6=\"\",\"\",SolCotizacion!K6)","v":""}]
[]
["Dirección de la Entidad:",null,{"$f":"IF(SolCotizacion!C8=\"\",\"\",SolCotizacion!C8)","v":""},null,null,null,null,null,null,"Correo de contacto:",{"$f":"IF(SolCotizacion!K8=\"\",\"\",SolCotizacion!K8)","v":""}]
[]
["Municipio:",null,{"$f":"IF(SolCotizacion!C10=\"\",\"\",SolCotizacion!C10)","v":""},null,null,null,null,null,null,"Teléfono de contacto:",{"$f":"IF(SolCotizacion!K10=\"\",\"\",SolCotizacion!K10)","v":""},null,{"$f":"IF(SolCotizacion!M10=\"\",\"\",SolCotizacion!M10)","v":""}]
[]
["Fecha de inicio de la Orden de Compra:",null,{"$f":"IF(SolCotizacion!C12=\"\",\"\",SolCotizacion!C12)","v":""},null,null,null,null,null,null,"Nombre funcionario Comprador:",null,{"$f":"IF(SolCotizacion!L12=\"\",\"\",SolCotizacion!L12)","v":""}]
[]
["Solicitud de Cotización"]
[]
[]
[]
[]
[]
[]
[]
["Item","Nombre Producto",null,null,null,null,null,null,"Unidad de Medida","Cantidad Estimada","Número de parte","Valor incluido IVA, gravámenes y demás impuestos aplicables","Valor Unitario * Und Cantidad","Total","IVA","Cantidad de servicio","Excento de IVA"]
[1,null,null,null,null,null,null,null,null,null,null,null,null,{"$f":"J23*L23","v":0},{"$f":"IF(Q23=\"NO\",N23*0.19,0)","v":0},10,"SI"]
[]
["Fin de solicitud",null,null,null,null,null,null,null,null,null,"Totales"]
[null,null,null,null,null,null,null,null,null,null,"Total Productos y Servicios:","Valor total de la cotización:",{"$f":"SUM(N23:N23)","v":0}]

{"sheet":"Cotizacion","index":2,"n_rows":27,"n_cols":19,"rows_kept":27,"cut":false,"hidden":false,"merged":[[24,0,24,5],[17,2,17,7],[24,11,24,12],[21,1,21,3],[21,4,21,7],[22,1,22,3],[22,4,22,7],[0,0,1,12],[5,0,5,1],[5,2,5,8],[5,10,5,12],[3,0,3,13],[7,0,7,1],[7,2,7,8],[9,0,9,1],[9,2,9,8],[15,10,15,11],[7,10,7,12],[9,10,9,11],[11,0,11,1],[11,2,11,8],[11,9,11,10],[11,11,11,12],[13,0,13,13]]}
["Resumen de Cotización - IAD Video-vigilancia ciudadana",null,null,null,null,null,null,null,null,null,null,null,null,null,null,null,0.01,0,0]
[]
[]
["Información de la Entidad Compradora"]
[]
["Nombre de la Entidad:",null,{"$f":"IF(ResumenCotizacion!C6=\"\",\"\",ResumenCotizacion!C6)","v":""},null,null,null,null,null,null,"NIT:",{"$f":"IF(ResumenCotizacion!K6=\"\",\"\",ResumenCotizacion!K6)","v":""}]
[]
["Dirección de la Entidad:",null,{"$f":"IF(ResumenCotizacion!C8=\"\",\"\",ResumenCotizacion!C8)","v":""},null,null,null,null,null,null,"Correo de contacto:",{"$f":"IF(ResumenCotizacion!K8=\"\",\"\",ResumenCotizacion!K8)","v":""}]
[]
["Municipio:",null,{"$f":"IF(ResumenCotizacion!C10=\"\",\"\",ResumenCotizacion!C10)","v":""},null,null,null,null,null,null,"Teléfono de contacto:",{"$f":"IF(ResumenCotizacion!K10=\"\",\"\",ResumenCotizacion!K10)","v":""},null,{"$f":"IF(ResumenCotizacion!M10=\"\",\"\",ResumenCotizacion!M10)","v":""}]
[]
["Fecha de inicio de la Orden de Compra:",null,{"$f":"IF(ResumenCotizacion!C12=\"\",\"\",ResumenCotizacion!C12)","v":""},null,null,null,null,null,null,"Nombre funcionario Comprador:",null,{"$f":"IF(ResumenCotizacion!L12=\"\",\"\",ResumenCotizacion!L12)","v":""}]
[]
["Solicitud de Cotización"]
[]
[]
[]
[null,"Proveedor:",null,null,null,null,null,null,null,null,{"$f":"IF(SolCotizacion!K18=\"\",\"\",SolCotizacion!K18)","v":""}]
[]
[]
[]
["Item","Nombre Producto",null,null,"Detalle",null,null,null,"Unidad de Medida","Cantidad Estimada","Número de parte","Valor incluido IVA, gravámenes y demás impuestos aplicables","Valor Unitario * Und Cantidad","Descuento","Total","IVA","Cantidad de servicio","Excento de IVA"]
[1,null,null,null,null,null,null,null,null,null,null,null,null,null,{"$f":"J23*L23-(L23*N23%*J23)","v":0},{"$f":"IF(R23=\"NO\",O23*0.19,0)","v":0},10,"SI"]
[]
["Fin de solicitud",null,null,null,null,null,null,null,null,null,"Totales","Totales"]
[null,null,null,null,null,null,null,null,null,null,"Valor total de la cotización:","Valor total de la cotización:",{"$f":"SUM($O$23:$O23)","v":0}]
[null,null,null,null,null,null,null,null,null,null,null,null,{"$f":"SUM(P23:P23)","v":0}]

{"sheet":"Cotizacion (3)","index":3,"n_rows":30,"n_cols":19,"rows_kept":30,"cut":false,"hidden":true,"merged":[[7,0,7,1],[7,2,7,8],[7,10,7,12],[0,0,1,12],[3,0,3,13],[5,0,5,1],[5,2,5,8],[5,10,5,12],[9,0,9,1],[9,2,9,8],[9,10,9,11],[11,0,11,1],[11,2,11,8],[11,9,11,10],[11,11,11,12],[29,10,31,10],[29,11,31,11],[29,12,31,12],[13,0,13,13],[15,10,15,11],[17,2,17,7],[21,1,21,7],[22,1,22,7],[23,1,23,7],[24,1,24,7],[25,1,25,7],[26,1,26,7],[28,0,28,5],[28,11,28,12]]}
["Resumen de Cotización - IAD Video-vigilancia ciudadana",null,null,null,null,null,null,null,null,null,null,null,null,null,null,null,0.01,0,0]
[]
[]
["Información de la Entidad Compradora"]
[]
["Nombre de la Entidad:",null,{"$f":"IF(ResumenCotizacion!C6=\"\",\"\",ResumenCotizacion!C6)","v":""},null,null,null,null,null,null,"NIT:",{"$f":"IF(ResumenCotizacion!K6=\"\",\"\",ResumenCotizacion!K6)","v":""}]
[]
["Dirección de la Entidad:",null,{"$f":"IF(ResumenCotizacion!C8=\"\",\"\",ResumenCotizacion!C8)","v":""},null,null,null,null,null,null,"Correo de contacto:",{"$f":"IF(ResumenCotizacion!K8=\"\",\"\",ResumenCotizacion!K8)","v":""}]
[]
["Municipio:",null,{"$f":"IF(ResumenCotizacion!C10=\"\",\"\",ResumenCotizacion!C10)","v":""},null,null,null,null,null,null,"Teléfono de contacto:",{"$f":"IF(ResumenCotizacion!K10=\"\",\"\",ResumenCotizacion!K10)","v":""},null,{"$f":"IF(ResumenCotizacion!M10=\"\",\"\",ResumenCotizacion!M10)","v":""}]
[]
["Fecha de inicio de la Orden de Compra:",null,{"$f":"IF(ResumenCotizacion!C12=\"\",\"\",ResumenCotizacion!C12)","v":""},null,null,null,null,null,null,"Nombre funcionario Comprador:",null,{"$f":"IF(ResumenCotizacion!L12=\"\",\"\",ResumenCotizacion!L12)","v":""}]
[]
["Solicitud de Cotización"]
[]
[]
[]
[null,"Proveedor:","UNIÓN TEMPORAL VIGILANCIA EFICIENTE 2017",null,null,null,null,null,null,null,{"$f":"IF(SolCotizacion!K18=\"\",\"\",SolCotizacion!K18)","v":""}]
[]
[]
[]
["Item","Nombre Producto",null,null,null,null,null,null,"Unidad de Medida","Cantidad Estimada","Número de parte","Valor Unitario (Incluye gravámenes adicionales)","Valor Unitario * Und Cantidad","Descuento","Total","IVA","Cantidad de servicio","Excento de IVA"]
[1,"Tipo 1: Sistema de punto de cámara PTZ sin Infrarrojo y sin poste.",null,null,null,null,null,null,"Und",10,"N/A",29549242,295492420,null,{"$f":"J23*L23-(L23*N23%*J23)","v":295492420},{"$f":"IF(R23=\"NO\",O23*0.19,0)","v":0},10,"SI"]
[2,"Tipo 2: Sistema de punto de cámara PTZ sin infrarrojo y con poste.",null,null,null,null,null,null,"Und",10,"N/A",33197036,331970360,null,{"$f":"J24*L24-(L24*N24%*J24)","v":331970360},{"$f":"IF(R24=\"NO\",O24*0.19,0)","v":0},10,"SI"]
[3,"Tipo 3: Sistema de punto de cámara fija y con poste.",null,null,null,null,null,null,"Und",10,"N/A",35938329,359383290,null,{"$f":"J25*L25-(L25*N25%*J25)","v":359383290},{"$f":"IF(R25=\"NO\",O25*0.19,0)","v":0},10,"SI"]
[4,"Opción 1: Equipo inalambrico 1.",null,null,null,null,null,null,"Und",10,"N/A",41634284,416342840,null,{"$f":"J26*L26-(L26*N26%*J26)","v":416342840},{"$f":"IF(R26=\"NO\",O26*0.19,0)","v":0},10,"SI"]
[5,"Opción 2: Equipo inalambrico 2.",null,null,null,null,null,null,"Und",10,"N/A",18228206,182282060,null,{"$f":"J27*L27-(L27*N27%*J27)","v":182282060},{"$f":"IF(R27=\"NO\",O27*0.19,0)","v":0},10,"SI"]
[]
["Fin de solicitud",null,null,null,null,null,null,null,null,null,"Totales","Totales"]
[null,null,null,null,null,null,null,null,null,null,"Valor total de la cotización:","Valor total de la cotización:",{"$f":"SUM(O23:O27)","v":1585470970}]

{"sheet":"Cotizacion (2)","index":4,"n_rows":37,"n_cols":19,"rows_kept":37,"cut":false,"hidden":true,"merged":[[7,0,7,1],[7,2,7,8],[7,10,7,12],[0,0,1,12],[3,0,3,13],[5,0,5,1],[5,2,5,8],[5,10,5,12],[13,0,13,13],[15,10,15,11],[17,2,17,7],[30,1,30,7],[9,0,9,1],[9,2,9,8],[9,10,9,11],[11,0,11,1],[11,2,11,8],[11,9,11,10],[11,11,11,12],[27,4,27,7],[28,4,28,7],[22,4,22,7],[25,4,25,7],[26,4,26,7],[35,0,35,5],[35,11,35,12],[36,10,38,10],[36,11,38,11],[36,12,38,12],[31,1,31,7],[32,1,32,7],[33,1,33,7],[29,1,29,3],[21,1,21,3],[21,4,21,7],[29,4,29,7],[24,4,24,7],[23,4,23,7],[23,1,23,3],[24,1,24,3],[25,1,25,3],[26,1,26,3],[27,1,27,3],[28,1,28,3],[22,1,22,3]]}
["Resumen de Cotización - IAD Video-vigilancia ciudadana",null,null,null,null,null,null,null,null,null,null,null,null,null,null,null,0.01,0,0]
[]
[]
["Información de la Entidad Compradora"]
[]
["Nombre de la Entidad:",null,{"$f":"IF(ResumenCotizacion!C6=\"\",\"\",ResumenCotizacion!C6)","v":""},null,null,null,null,null,null,"NIT:",{"$f":"IF(ResumenCotizacion!K6=\"\",\"\",ResumenCotizacion!K6)","v":""}]
[]
["Dirección de la Entidad:",null,{"$f":"IF(ResumenCotizacion!C8=\"\",\"\",ResumenCotizacion!C8)","v":""},null,null,null,null,null,null,"Correo de contacto:",{"$f":"IF(ResumenCotizacion!K8=\"\",\"\",ResumenCotizacion!K8)","v":""}]
[]
["Municipio:",null,{"$f":"IF(ResumenCotizacion!C10=\"\",\"\",ResumenCotizacion!C10)","v":""},null,null,null,null,null,null,"Teléfono de contacto:",{"$f":"IF(ResumenCotizacion!K10=\"\",\"\",ResumenCotizacion!K10)","v":""},null,{"$f":"IF(ResumenCotizacion!M10=\"\",\"\",ResumenCotizacion!M10)","v":""}]
[]
["Fecha de inicio de la Orden de Compra:",null,{"$f":"IF(ResumenCotizacion!C12=\"\",\"\",ResumenCotizacion!C12)","v":""},null,null,null,null,null,null,"Nombre funcionario Comprador:",null,{"$f":"IF(ResumenCotizacion!L12=\"\",\"\",ResumenCotizacion!L12)","v":""}]
[]
["Solicitud de Cotización"]
[]
[]
[]
[null,"Proveedor:","UNIÓN TEMPORAL VIGILANCIA EFICIENTE 2017",null,null,null,null,null,null,null,{"$f":"IF(SolCotizacion!K18=\"\",\"\",SolCotizacion!K18)","v":""}]
[]
[]
[]
["Item","Nombre Producto",null,null,"Detalle",null,null,null,"Unidad de Medida","Cantidad Estimada","Número de parte","Valor Unitario (Incluye gravámenes adicionales)","Valor Unitario * Und Cantidad","Descuento","Total","IVA","Cantidad de servicio","Excento de IVA"]
[1,"Tipo 1: Sistema de punto de cámara PTZ sin Infrarrojo y sin poste.",null,null,"Cámara PTZ tipo domo exterior PTZ sin Infrarrojo y sin poste.",null,null,null,"Und",10,"N/A",{"$f":"VLOOKUP($E23,Listado!$L:$P,MATCH($C$18,Listado!$L$2:$P$2,0),0)","v":10510135},{"$f":"J23*L23","v":105101350},null,{"$f":"J23*L23-(L23*N23%*J23)","v":105101350},{"$f":"IF(R23=\"NO\",O23*0.19,0)","v":0},10,"SI"]
[1,"Tipo 1: Sistema de punto de cámara PTZ sin Infrarrojo y sin poste.",null,null,"Ups",null,null,null,"Und",10,null,{"$f":"VLOOKUP($E24,Listado!$L:$P,MATCH($C$18,Listado!$L$2:$P$2,0),0)","v":2873324},{"$f":"J24*L24","v":28733240},null,{"$f":"J24*L24-(L24*N24%*J24)","v":28733240}]
[1,"Tipo 1: Sistema de punto de cámara PTZ sin Infrarrojo y sin poste.",null,null,"Sistema de almacenamiento",null,null,null,"Und",10,null,{"$f":"VLOOKUP($E25,Listado!$L:$P,MATCH($C$18,Listado!$L$2:$P$2,0),0)","v":8721891},87218910,null,87218910]
[1,"Tipo 1: Sistema de punto de cámara PTZ sin Infrarrojo y sin poste.",null,null,"Gabinetes de poste/fachada ",null,null,null,"Und",10,null,{"$f":"VLOOKUP($E26,Listado!$L:$P,MATCH($C$18,Listado!$L$2:$P$2,0),0)","v":2213193},22131930,null,22131930]
[1,"Tipo 1: Sistema de punto de cámara PTZ sin Infrarrojo y sin poste.",null,null,"Corona antiescalatorias",null,null,null,"Und",10,null,{"$f":"VLOOKUP($E27,Listado!$L:$P,MATCH($C$18,Listado!$L$2:$P$2,0),0)","v":228164},2281640,null,2281640]
[1,"Tipo 1: Sistema de punto de cámara PTZ sin Infrarrojo y sin poste.",null,null,"Brazos de soporte para cámaras",null,null,null,"Und",10,null,{"$f":"VLOOKUP($E28,Listado!$L:$P,MATCH($C$18,Listado!$L$2:$P$2,0),0)","v":465729},4657290,null,4657290]
[1,"Tipo 1: Sistema de punto de cámara PTZ sin Infrarrojo y sin poste.",null,null,"Sistemas de puesta a tierra",null,null,null,"Und",10,null,{"$f":"VLOOKUP($E29,Listado!$L:$P,MATCH($C$18,Listado!$L$2:$P$2,0),0)","v":2898857},28988570,null,28988570]
[1,"Tipo 1: Sistema de punto de cámara PTZ sin Infrarrojo y sin poste.",null,null,"Instalación y puesta en funcionamiento",null,null,null,"Und",10,null,{"$f":"VLOOKUP($E30,Listado!$L:$P,MATCH($C$18,Listado!$L$2:$P$2,0),0)","v":1704941.11},17049411.100000001,null,17049411.100000001]
[2,"Tipo 2: Sistema de punto de cámara PTZ sin infrarrojo y con poste.",null,null,null,null,null,null,"Und",10,"N/A",33197036,331970360,null,{"$f":"J31*L31-(L31*N31%*J31)","v":331970360},{"$f":"IF(R31=\"NO\",O31*0.19,0)","v":0},10,"SI"]
[3,"Tipo 3: Sistema de punto de cámara fija y con poste.",null,null,null,null,null,null,"Und",10,"N/A",35938329,359383290,null,{"$f":"J32*L32-(L32*N32%*J32)","v":359383290},{"$f":"IF(R32=\"NO\",O32*0.19,0)","v":0},10,"SI"]
[4,"Opción 1: Equipo inalambrico 1.",null,null,null,null,null,null,"Und",10,"N/A",41634284,416342840,null,{"$f":"J33*L33-(L33*N33%*J33)","v":416342840},{"$f":"IF(R33=\"NO\",O33*0.19,0)","v":0},10,"SI"]
[5,"Opción 2: Equipo inalambrico 2.",null,null,null,null,null,null,"Und",10,"N/A",18228206,182282060,null,{"$f":"J34*L34-(L34*N34%*J34)","v":182282060},{"$f":"IF(R34=\"NO\",O34*0.19,0)","v":0},10,"SI"]
[]
["Fin de solicitud",null,null,null,null,null,null,null,null,null,"Totales","Totales"]
[null,null,null,null,null,null,null,null,null,null,"Valor total de la cotización:","Valor total de la cotización:",{"$f":"SUM(O23:O34)","v":1586140891.0999999}]

{"sheet":"Version 1 24-11-2017","index":5,"n_rows":4,"n_cols":3,"rows_kept":4,"cut":false,"hidden":true,"merged":[]}
["Version","Fecha","Obseraviones"]
["V1","2017-11-10","Creaciòn de Simulador"]
["V1","2017-11-24","Correccion ajustes de usuario"]
["V1","2017-11-28","Desglose de los productos"]

{"sheet":"CSV","index":6,"n_rows":2,"n_cols":8,"rows_kept":2,"cut":false,"hidden":true,"merged":[]}
["Tipo (servicio o artÃ­culo)","Cantidad","CÃ³digo de unidad de medida*","PosiciÃ³n","Precio base","Divisa","DescripciÃ³n","MercancÃ­a"]
["item",1,"Und",null,"\"0\"","COP","vvl01--Bienes y Servicios de Videovigilancia"]

{"sheet":"Categoría 1","index":7,"n_rows":21,"n_cols":19,"rows_kept":21,"cut":false,"hidden":true,"merged":[]}
["Código matriz","Excento de IVA","Region ","Categoria","Familia","Nombre Producto","Unidad de Medida","Unidad de Servicio","Tipo","Precio ","Proveedor","Número de parte",null,"Menor valor","proveedor 1","proveedor 2","proveedor 3","proveedor 4","proveedor 5"]
[1,"SI","Región Todas","Categoría 1","camara","Tipo 1: Sistema de punto de cámara PTZ sin Infrarrojo y sin poste.","Und","Und","Producto",{"$f":"SUM(Listado!M4:M11)","v":29616234.109999999},{"$f":"Listado!H2","v":"UNIÓN TEMPORAL VIGILANCIA EFICIENTE 2017"},"N/A",null,{"$f":"MIN(IF(O2=0,1000000000000,O2),IF(P2=0,1000000000000,P2),IF(Q2=0,1000000000000,Q2),IF(R2=0,1000000000000,R2),IF(S2=0,1000000000000,S2))","v":20196158},{"$f":"SUM(IF($M:$M=1,$J:$J,0))","v":41735617.880000003},{"$f":"SUM(IF($M:$M=2,$J:$J,0))","v":45589399.490000002},{"$f":"SUM(IF($M:$M=3,$J:$J,0))","v":20196158},{"$f":"SUM(IF($M:$M=4,$J:$J,0))","v":41750326.420000002},{"$f":"SUM(IF($M:$M=5,$J:$J,0))","v":0}]
[1,"SI","Región Todas","Categoría 1","camara","Tipo 1: Sistema de punto de cámara PTZ sin Infrarrojo y sin poste.","Und","Und","Producto",{"$f":"SUM(Listado!N4:N11)","v":42508212.700000003},{"$f":"Listado!H3","v":"UT UNITEC CCE 2017"},"N/A"]
[2,"SI","Región Todas","Categoría 1","camara","Tipo 1: Sistema de punto de cámara PTZ sin Infrarrojo y sin poste.","Und","Und","Producto",{"$f":"SUM(Listado!O4:O11)","v":20168320.864},{"$f":"Listado!H4","v":"U.T. BOGOTA ALCALDIAS SEGURIDAD CIUDADANA"},"N/A"]
[2,"SI","Región Todas","Categoría 1","camara","Tipo 1: Sistema de punto de cámara PTZ sin Infrarrojo y sin poste.","Und","Und","Producto",{"$f":"SUM(Listado!P4:P11)","v":30176037.640000001},{"$f":"Listado!H5","v":"SEGURITECH PRIVADA S.A DE C.V"},"N/A"]
[3,"SI","Región Todas","Categoría 1","camara","Tipo 2: Sistema de punto de cámara PTZ sin infrarrojo y con poste.","Und","Und","Producto",{"$f":"SUM(Listado!M14:M22)","v":33273995.73},{"$f":"Listado!H2","v":"UNIÓN TEMPORAL VIGILANCIA EFICIENTE 2017"},"N/A"]
[3,"SI","Región Todas","Categoría 1","camara","Tipo 2: Sistema de punto de cámara PTZ sin infrarrojo y con poste.","Und","Und","Producto",{"$f":"SUM(Listado!N14:N22)","v":45866770.130000003},{"$f":"Listado!H3","v":"UT UNITEC CCE 2017"},"N/A"]
[4,"SI","Región Todas","Categoría 1","camara","Tipo 2: Sistema de punto de cámara PTZ sin infrarrojo y con poste.","Und","Und","Producto",{"$f":"SUM(Listado!O14:O22)","v":21938320.864},{"$f":"Listado!H4","v":"U.T. BOGOTA ALCALDIAS SEGURIDAD CIUDADANA"},"N/A"]
[4,"SI","Región Todas","Categoría 1","camara","Tipo 2: Sistema de punto de cámara PTZ sin infrarrojo y con poste.","Und","Und","Producto",{"$f":"SUM(Listado!P14:P22)","v":34261703.810000002},{"$f":"Listado!H5","v":"SEGURITECH PRIVADA S.A DE C.V"},"N/A"]
[5,"SI","Región Todas","Categoría 1","camara","Tipo 3: Sistema de punto de cámara fija y con poste.","Und","Und","Producto",{"$f":"SUM(Listado!M25:M33)","v":36023598.549999997},{"$f":"Listado!H2","v":"UNIÓN TEMPORAL VIGILANCIA EFICIENTE 2017"},"N/A"]
[5,"SI","Región Todas","Categoría 1","camara","Tipo 3: Sistema de punto de cámara fija y con poste.","Und","Und","Producto",{"$f":"SUM(Listado!N25:N33)","v":48576638.130000003},{"$f":"Listado!H3","v":"UT UNITEC CCE 2017"},"N/A"]
[6,"SI","Región Todas","Categoría 1","camara","Tipo 3: Sistema de punto de cámara fija y con poste.","Und","Und","Producto",{"$f":"SUM(Listado!O25:O33)","v":24018161.614},{"$f":"Listado!H4","v":"U.T. BOGOTA ALCALDIAS SEGURIDAD CIUDADANA"},"N/A"]
[6,"SI","Región Todas","Categoría 1","camara","Tipo 3: Sistema de punto de cámara fija y con poste.","Und","Und","Producto",{"$f":"SUM(Listado!P25:P33)","v":37029744.519999996},{"$f":"Listado!H5","v":"SEGURITECH PRIVADA S.A DE C.V"},"N/A"]
[7,"SI","Región Todas","Categoría 1","camara","Opción 1: Equipo inalambrico 1.","Und","Und","Producto",{"$f":"SUM(Listado!M36:M37)","v":41735617.880000003},{"$f":"Listado!H2","v":"UNIÓN TEMPORAL VIGILANCIA EFICIENTE 2017"},"N/A",1]
[7,"SI","Región Todas","Categoría 1","camara","Opción 1: Equipo inalambrico 1.","Und","Und","Producto",{"$f":"SUM(Listado!N36:N37)","v":45589399.490000002},{"$f":"Listado!H3","v":"UT UNITEC CCE 2017"},"N/A",2]
[8,"SI","Región Todas","Categoría 1","camara","Opción 1: Equipo inalambrico 1.","Und","Und","Producto",{"$f":"SUM(Listado!O36:O37)","v":20196158},{"$f":"Listado!H4","v":"U.T. BOGOTA ALCALDIAS SEGURIDAD CIUDADANA"},"N/A",3]
[8,"SI","Región Todas","Categoría 1","camara","Opción 1: Equipo inalambrico 1.","Und","Und","Producto",{"$f":"SUM(Listado!P36:P37)","v":41750326.420000002},{"$f":"Listado!H5","v":"SEGURITECH PRIVADA S.A DE C.V"},"N/A",4]
[9,"SI","Región Todas","Categoría 1","camara","Opción 2: Equipo inalambrico 2.","Und","Und","Producto",{"$f":"SUM(Listado!M40:M41)","v":18268280.800000001},{"$f":"Listado!H2","v":"UNIÓN TEMPORAL VIGILANCIA EFICIENTE 2017"},"N/A"]
[9,"SI","Región Todas","Categoría 1","camara","Opción 2: Equipo inalambrico 2.","Und","Und","Producto",{"$f":"SUM(Listado!N40:N41)","v":13821470.91},{"$f":"Listado!H3","v":"UT UNITEC CCE 2017"},"N/A"]
[10,"SI","Región Todas","Categoría 1","camara","Opción 2: Equipo inalambrico 2.","Und","Und","Producto",{"$f":"SUM(Listado!O40:O41)","v":5091718},{"$f":"Listado!H4","v":"U.T. BOGOTA ALCALDIAS SEGURIDAD CIUDADANA"},"N/A"]
[10,"SI","Región Todas","Categoría 1","camara","Opción 2: Equipo inalambrico 2.","Und","Und","Producto",{"$f":"SUM(Listado!P40:P41)","v":6438981.1399999997},{"$f":"Listado!H5","v":"SEGURITECH PRIVADA S.A DE C.V"},"N/A"]

{"sheet":"Listado","index":8,"n_rows":48,"n_cols":16,"rows_kept":48,"cut":false,"hidden":true,"merged":[[2,10,2,15],[12,10,12,15],[23,10,23,15],[34,10,34,15],[38,10,38,15]]}
["Categoria",null,"Productos",null,null,null,null,"Categoría1Proveedor"]
["Categoría 1",null,"Tipo 1: Sistema de punto de cámara PTZ sin Infrarrojo y sin poste.",null,null,null,null,"UNIÓN TEMPORAL VIGILANCIA EFICIENTE 2017",null,null,"Ref.  Artículo. ","Descripción",{"$f":"H2","v":"UNIÓN TEMPORAL VIGILANCIA EFICIENTE 2017"},{"$f":"H3","v":"UT UNITEC CCE 2017"},{"$f":"H4","v":"U.T. BOGOTA ALCALDIAS SEGURIDAD CIUDADANA"},{"$f":"H5","v":"SEGURITECH PRIVADA S.A DE C.V"}]
[null,null,"Tipo 2: Sistema de punto de cámara PTZ sin infrarrojo y con poste.",null,null,null,null,"UT UNITEC CCE 2017",null,null,"Tipo 1: Sistema de punto de cámara PTZ sin Infrarrojo y sin poste."]
[null,null,"Tipo 3: Sistema de punto de cámara fija y con poste.",null,null,null,null,"U.T. BOGOTA ALCALDIAS SEGURIDAD CIUDADANA",{"$f":"J4&L4","v":"Tipo 1: Sistema de punto de cámara PTZ sin Infrarrojo y sin poste.Cámara PTZ tipo domo exterior PTZ sin Infrarrojo y sin poste."},"Tipo 1: Sistema de punto de cámara PTZ sin Infrarrojo y sin poste.",1,"Cámara PTZ tipo domo exterior PTZ sin Infrarrojo y sin poste.",10510135,9181802,8331700,16929988]
[null,null,"Opción 1: Equipo inalambrico 1.",null,null,null,null,"SEGURITECH PRIVADA S.A DE C.V",{"$f":"J5&L5","v":"Tipo 1: Sistema de punto de cámara PTZ sin Infrarrojo y sin poste.Ups"},"Tipo 1: Sistema de punto de cámara PTZ sin Infrarrojo y sin poste.",2,"Ups",2873324,2477818,1950000,1255081]
[null,null,"Opción 2: Equipo inalambrico 2.",null,null,null,null,null,"Tipo 1: Sistema de punto de cámara PTZ sin Infrarrojo y sin poste.Sistema de almacenamiento","Tipo 1: Sistema de punto de cámara PTZ sin Infrarrojo y sin poste.",3,"Sistema de almacenamiento",8721891,13843032,4341876.8640000001,4442508]
[null,null,null,null,null,null,null,null,"Tipo 1: Sistema de punto de cámara PTZ sin Infrarrojo y sin poste.Gabinetes de poste/fachada ","Tipo 1: Sistema de punto de cámara PTZ sin Infrarrojo y sin poste.",4,"Gabinetes de poste/fachada ",2213193,2445331,1570800,1245335]
[null,null,null,null,null,null,null,null,"Tipo 1: Sistema de punto de cámara PTZ sin Infrarrojo y sin poste.Corona antiescalatorias","Tipo 1: Sistema de punto de cámara PTZ sin Infrarrojo y sin poste.",5,"Corona antiescalatorias",228164,228361,114240,79135]
[null,null,null,null,null,null,null,null,"Tipo 1: Sistema de punto de cámara PTZ sin Infrarrojo y sin poste.Brazos de soporte para cámaras","Tipo 1: Sistema de punto de cámara PTZ sin Infrarrojo y sin poste.",6,"Brazos de soporte para cámaras",465729,358904,171360,126616]
[null,null,null,null,null,null,null,null,"Tipo 1: Sistema de punto de cámara PTZ sin Infrarrojo y sin poste.Sistemas de puesta a tierra","Tipo 1: Sistema de punto de cámara PTZ sin Infrarrojo y sin poste.",7,"Sistemas de puesta a tierra",2898857,2682974,1440000,1420307]
[null,null,null,null,null,null,null,null,"Tipo 1: Sistema de punto de cámara PTZ sin Infrarrojo y sin poste.Instalación y puesta en funcionamiento","Tipo 1: Sistema de punto de cámara PTZ sin Infrarrojo y sin poste.",8,"Instalación y puesta en funcionamiento",1704941.11,11289990.699999999,2248344,4677067.6399999997]
[null,null,null,null,null,null,null,null,null,null,null,null,{"$f":"SUM(M4:M11)","v":29616234.109999999},{"$f":"SUM(N4:N11)","v":42508212.700000003},20168320.864,30176037.640000001]
[null,null,null,null,null,null,null,null,null,null,"Tipo 2: Sistema de punto de cámara PTZ sin infrarrojo y con poste."]
[null,null,null,null,null,null,null,null,{"$f":"J14&L14","v":"Tipo 2: Sistema de punto de cámara PTZ sin infrarrojo y con poste.Cámara PTZ tipo domo exterior PTZ sin infrarrojo y con poste."},"Tipo 2: Sistema de punto de cámara PTZ sin infrarrojo y con poste.",1,"Cámara PTZ tipo domo exterior PTZ sin infrarrojo y con poste.",10510135,9181802,8331700,18603951]
[null,null,null,null,null,null,null,null,"Tipo 2: Sistema de punto de cámara PTZ sin infrarrojo y con poste.Ups","Tipo 2: Sistema de punto de cámara PTZ sin infrarrojo y con poste.",2,"Ups",2873324,2477818,1950000,1255081]
[null,null,null,null,null,null,null,null,"Tipo 2: Sistema de punto de cámara PTZ sin infrarrojo y con poste.Sistema de almacenamiento","Tipo 2: Sistema de punto de cámara PTZ sin infrarrojo y con poste.",3,"Sistema de almacenamiento",8721891,13843032,4341876.8640000001,4442508]
[null,null,null,null,null,null,null,null,"Tipo 2: Sistema de punto de cámara PTZ sin infrarrojo y con poste.Postes y/o soportes para fachada e instalación","Tipo 2: Sistema de punto de cámara PTZ sin infrarrojo y con poste.",4,"Postes y/o soportes para fachada e instalación",3404087,2167823,1770000,1778455]
[null,null,null,null,null,null,null,null,"Tipo 2: Sistema de punto de cámara PTZ sin infrarrojo y con poste.Gabinetes de poste/fachada ","Tipo 2: Sistema de punto de cámara PTZ sin infrarrojo y con poste.",5,"Gabinetes de poste/fachada ",2213193,2445331,1570800,1245335]
[null,null,null,null,null,null,null,null,"Tipo 2: Sistema de punto de cámara PTZ sin infrarrojo y con poste.Corona antiescalatorias","Tipo 2: Sistema de punto de cámara PTZ sin infrarrojo y con poste.",6,"Corona antiescalatorias",228164,228361,114240,79135]
[null,null,null,null,null,null,null,null,"Tipo 2: Sistema de punto de cámara PTZ sin infrarrojo y con poste.Brazos de soporte para cámaras","Tipo 2: Sistema de punto de cámara PTZ sin infrarrojo y con poste.",7,"Brazos de soporte para cámaras",465729,358904,171360,126616]
[null,null,null,null,null,null,null,null,"Tipo 2: Sistema de punto de cámara PTZ sin infrarrojo y con poste.Sistemas de puesta a tierra","Tipo 2: Sistema de punto de cámara PTZ sin infrarrojo y con poste.",8,"Sistemas de puesta a tierra",2898857,2682974,1440000,1420307]
[null,null,null,null,null,null,null,null,"Tipo 2: Sistema de punto de cámara PTZ sin infrarrojo y con poste.Instalación y puesta en funcionamiento","Tipo 2: Sistema de punto de cámara PTZ sin infrarrojo y con poste.",9,"Instalación y puesta en funcionamiento",1958615.73,12480725.130000001,2248344,5310315.8099999996]
[null,null,null,null,null,null,null,null,null,null,null,null,{"$f":"SUM(M14:M22)","v":33273995.73},{"$f":"SUM(N14:N22)","v":45866770.130000003},21938320.864,34261703.810000002]
[null,null,null,null,null,null,null,null,null,null,"Tipo 3: Sistema de punto de cámara fija y con poste."]
[null,null,null,null,null,null,null,null,{"$f":"J25&L25","v":"Tipo 3: Sistema de punto de cámara fija y con poste.Cámara Fija"},"Tipo 3: Sistema de punto de cámara fija y con poste.",1,"Cámara Fija",13048254,11891670,10411540.750000002,20942965]
[null,null,null,null,null,null,null,null,"Tipo 3: Sistema de punto de cámara fija y con poste.Ups","Tipo 3: Sistema de punto de cámara fija y con poste.",2,"Ups",2873324,2477818,1950000,1255081]
[null,null,null,null,null,null,null,null,"Tipo 3: Sistema de punto de cámara fija y con poste.Sistema de almacenamiento","Tipo 3: Sistema de punto de cámara fija y con poste.",3,"Sistema de almacenamiento",8721891,13843032,4341876.8640000001,4442508]
[null,null,null,null,null,null,null,null,"Tipo 3: Sistema de punto de cámara fija y con poste.Postes y/o soportes para fachada e instalación","Tipo 3: Sistema de punto de cámara fija y con poste.",4,"Postes y/o soportes para fachada e instalación",3404087,2167823,1770000,1778455]
[null,null,null,null,null,null,null,null,"Tipo 3: Sistema de punto de cámara fija y con poste.Gabinetes de poste/fachada ","Tipo 3: Sistema de punto de cámara fija y con poste.",5,"Gabinetes de poste/fachada ",2213193,2445331,1570800,1245335]
[null,null,null,null,null,null,null,null,"Tipo 3: Sistema de punto de cámara fija y con poste.Corona antiescalatorias","Tipo 3: Sistema de punto de cámara fija y con poste.",6,"Corona antiescalatorias",228164,228361,114240,79135]
[null,null,null,null,null,null,null,null,"Tipo 3: Sistema de punto de cámara fija y con poste.Brazos de soporte para cámaras","Tipo 3: Sistema de punto de cámara fija y con poste.",7,"Brazos de soporte para cámaras",465729,358904,171360,126616]
[null,null,null,null,null,null,null,null,"Tipo 3: Sistema de punto de cámara fija y con poste.Sistemas de puesta a tierra","Tipo 3: Sistema de punto de cámara fija y con poste.",8,"Sistemas de puesta a tierra",2898857,2682974,1440000,1420307]
[null,null,null,null,null,null,null,null,"Tipo 3: Sistema de punto de cámara fija y con poste.Instalación y puesta en funcionamiento","Tipo 3: Sistema de punto de cámara fija y con poste.",9,"Instalación y puesta en funcionamiento",2170099.5499999998,12480725.130000001,2248344,5739342.5199999996]
[null,null,null,null,null,null,null,null,null,null,null,null,{"$f":"SUM(M25:M33)","v":36023598.549999997},{"$f":"SUM(N25:N33)","v":48576638.130000003},24018161.614,37029744.519999996]
[null,null,null,null,null,null,null,null,null,null,"Opción 1: Equipo inalambrico 1."]
[null,null,null,null,null,null,null,null,{"$f":"J36&L36","v":"Opción 1: Equipo inalambrico 1.Equipo de red inalámbrica estación base. "},"Opción 1: Equipo inalambrico 1.",1,"Equipo de red inalámbrica estación base. ",39156683,43695967,19134440,35279328]
[null,null,null,null,null,null,null,null,"Opción 1: Equipo inalambrico 1.Instalación y puesta en funcionamiento","Opción 1: Equipo inalambrico 1.",2,"Instalación y puesta en funcionamiento",2578934.88,1893432.49,1061718,6470998.4199999999]
[null,null,null,null,null,null,null,null,null,null,null,null,{"$f":"SUM(M36:M37)","v":41735617.880000003},{"$f":"SUM(N36:N37)","v":45589399.490000002},20196158,41750326.420000002]
[null,null,null,null,null,null,null,null,null,null,"Opción 2: Equipo inalambrico 2."]
[null,null,null,null,null,null,null,null,{"$f":"J40&L40","v":"Opción 2: Equipo inalambrico 2.Equipo de red inalámbrica suscriptor o terminal ptp."},"Opción 2: Equipo inalambrico 2.",1,"Equipo de red inalámbrica suscriptor o terminal ptp.",17248382,12283537,4030000,5440986]
[null,null,null,null,null,null,null,null,"Opción 2: Equipo inalambrico 2.Instalación y puesta en funcionamiento","Opción 2: Equipo inalambrico 2.",2,"Instalación y puesta en funcionamiento",1019898.8,1537933.91,1061718,997995.14]
[null,null,null,null,null,null,null,null,null,null,null,null,{"$f":"SUM(M40:M41)","v":18268280.800000001},{"$f":"SUM(N40:N41)","v":13821470.91},5091718,6438981.1399999997]
[]
[]
[]
[]
[]
[null,null,null,null,null,null,null,null,null,null,null,null,"UNIÓN TEMPORAL VIGILANCIA EFICIENTE 2017","UT UNITEC CCE 2017","U.T. BOGOTA ALCALDIAS SEGURIDAD CIUDADANA","SEGURITECH PRIVADA S.A DE C.V"]